fUSD/lending_fUSD_20240615
["ID","MTS","AMOUNT","RATE_DAILY","PERIOD"]
[329538856,1718422277925,-1062.12,0.00023561,3]
[329538857,1718422277935,-500.0,0.00023561,3]
[329538858,1718422277949,-330.10927032,0.00023561,3]
[329538859,1718422277966,-1798.46,0.00023561,3]
[329538860,1718422277980,-6430.71,0.00023561,3]
[329538861,1718422278007,-500.0,0.00023561,3]
[329538862,1718422278021,-500.0,0.00023561,3]
[329538863,1718422278033,-500.0,0.00023561,3]
[329538864,1718422278045,-500.0,0.00023561,3]
[329538865,1718422278073,-500.0,0.00023561,3]
[329538866,1718422278085,-500.0,0.00023561,3]
[329538867,1718422278102,-500.0,0.00023561,3]
[329538868,1718422278118,-500.0,0.00023561,3]
[329538869,1718422278133,-769.63,0.00023561,3]
[329538870,1718422278151,-500.0,0.00023561,3]
[329538871,1718422278175,-706.02,0.00023561,3]
[329538872,1718422278236,-1384.1,0.00023561,3]
[329538873,1718422278255,-500.0,0.00023561,3]
[329538874,1718422278267,-500.0,0.00023561,3]
[329538875,1718422278285,-500.0,0.00023561,3]
[329538876,1718422278298,-500.0,0.00023561,3]
[329538877,1718422278317,-550.5,0.00023561,3]
[329538878,1718422278331,-500.0,0.00023561,3]
[329538879,1718422278347,-500.0,0.00023561,3]
[329538880,1718422278361,-500.0,0.00023561,3]
[329538881,1718422278376,-500.0,0.00023561,3]
[329538882,1718422278393,-573.92,0.00023561,3]
[329538883,1718422278408,-500.0,0.00023561,3]
[329538884,1718422278421,-507.76074878,0.00023561,3]
[329538885,1718422278458,-660.95,0.00023561,3]
[329538886,1718422278472,-500.0,0.00023561,3]
[329538887,1718422278484,-500.0,0.00023561,3]
[329538888,1718422278502,-517.52156594,0.00023561,3]
[329538889,1718422278517,-500.0,0.00023561,3]
[329538890,1718422278532,-500.0,0.00023561,3]
[329538891,1718422278563,-438.39971,0.000236,2]
[329538892,1718422278575,-6824.48538974,0.00023613,2]
[329538893,1718422278594,-151.4,0.00023671,2]
[329538894,1718422278619,-150.68,0.00023671,2]
[329538895,1718422278635,-151.85,0.00023671,2]
[329538896,1718422278651,-537.74,0.00023671,2]
[329538897,1718422278670,-817.76,0.00023671,2]
[329538898,1718422278684,-150.0,0.00023671,2]
[329538899,1718422278703,-301.07,0.00023671,2]
[329538900,1718422278728,-152.14,0.00023671,2]
[329538901,1718422278745,-429.5,0.00023671,2]
[329538902,1718422278758,-429.84,0.00023671,2]
[329538903,1718422278770,-500.0,0.00023698,2]
[329538904,1718422278822,-500.0,0.00023698,2]
[329538905,1718422278833,-320.0,0.00023704,2]
[329538906,1718422278847,-906.03,0.00023833,3]
[329538907,1718422278857,-528.37,0.00023835,3]
[329538908,1718422278869,-500.0,0.00023835,3]
[329538909,1718422278893,-500.0,0.00023835,3]
[329538910,1718422278905,-500.0,0.00023835,3]
[329538911,1718422278924,-500.0,0.00023835,3]
[329538912,1718422278936,-500.0,0.00023835,3]
[329538913,1718422278961,-429.79493371,0.00023835,3]
[329538914,1718422278973,-500.0,0.00023835,3]
[329538915,1718422278992,-500.0,0.00023835,3]
[329538916,1718422279004,-500.0,0.00023835,3]
[329538917,1718422279016,-500.0,0.00023835,3]
[329538918,1718422279026,-500.0,0.00023835,3]
[329538919,1718422279038,-500.0,0.00023835,3]
[329538920,1718422279051,-500.0,0.00023835,3]
[329538921,1718422279065,-500.0,0.00023835,3]
[329538922,1718422279077,-500.0,0.00023835,3]
[329538923,1718422279113,-500.0,0.00023835,3]
[329538924,1718422279171,-500.0,0.00023835,3]
[329538925,1718422279183,-500.0,0.00023835,3]
[329538926,1718422279201,-500.0,0.00023835,3]
[329538927,1718422279211,-500.0,0.00023835,3]
[329538928,1718422279222,-524.07064679,0.00023835,3]
[329538929,1718422279234,-500.0,0.00023835,3]
[329538930,1718422279250,-500.0,0.00023835,3]
[329538931,1718422279267,-500.0,0.00023835,3]
[329538932,1718422279279,-500.0,0.00023835,3]
[329538933,1718422279312,-500.0,0.00023835,3]
[329538934,1718422279349,-500.0,0.00023835,3]
[329538935,1718422279361,-500.0,0.00023835,3]
[329538936,1718422279376,-510.56957349,0.00023835,3]
[329538937,1718422279392,-500.0,0.00023835,3]
[329538938,1718422279423,-500.0,0.00023835,3]
[329538939,1718422279441,-991.82,0.00023835,3]
[329538940,1718422279465,-500.0,0.00023835,3]
[329538941,1718422279478,-500.0,0.00023835,3]
[329538942,1718422279489,-510.9,0.00023835,3]
[329538943,1718422279502,-500.0,0.00023835,3]
[329538944,1718422279514,-512.21847607,0.00023835,3]
[329538945,1718422279528,-597.10465414,0.00023835,3]
[329538946,1718422279542,-500.0,0.00023835,3]
[329538947,1718422279557,-500.0,0.00023835,3]
[329538948,1718422279569,-516.55150105,0.00023835,3]
[329538949,1718422279581,-526.72,0.00023835,3]
[329538950,1718422279599,-500.0,0.00023835,3]
[329538951,1718422279628,-500.0,0.00023835,3]
[329538952,1718422279646,-500.0,0.00023835,3]
[329538953,1718422279657,-500.0,0.00023835,3]
[329538954,1718422279670,-615.17,0.00023835,3]
[329538955,1718422279689,-596.36643834,0.00023835,3]
[329538956,1718422279702,-500.0,0.00023835,3]
[329538957,1718422279718,-500.0,0.00023835,3]
[329538958,1718422279737,-525.96826853,0.00023835,3]
[329538959,1718422279751,-500.0,0.00023835,3]
[329538960,1718422279764,-500.0,0.00023835,3]
[329538961,1718422279782,-467.75324705,0.00023835,3]
[329538962,1718422279837,-500.0,0.00023835,3]
[329538963,1718422279864,-500.0,0.00023835,3]
[329538964,1718422279897,-500.0,0.00023835,3]
[329538965,1718422279913,-500.0,0.00023835,3]
[329538966,1718422279925,-500.0,0.00023835,3]
[329538967,1718422279939,-500.0,0.00023835,3]
[329538968,1718422279956,-500.0,0.00023835,3]
[329538969,1718422279969,-500.0,0.00023835,3]
[329538970,1718422279988,-500.0,0.00023835,3]
[329538971,1718422280000,-178.05354205,0.00023835,3]
[329538972,1718422280012,-500.0,0.00023835,3]
[329538973,1718422280024,-500.0,0.00023835,3]
[329538974,1718422280040,-500.0,0.00023835,3]
[329538975,1718422280053,-531.15972096,0.00023835,3]
[329538976,1718422280078,-610.67,0.00023835,3]
[329538977,1718422280097,-547.43765672,0.00023835,3]
[329538978,1718422280118,-500.0,0.00023835,3]
[329538979,1718422280135,-500.0,0.00023835,3]
[329538980,1718422280169,-500.0,0.00023835,3]
[329538981,1718422280195,-500.0,0.00023835,3]
[329538982,1718422280218,-666.98,0.00023835,3]
[329538983,1718422280230,-500.0,0.00023835,3]
[329538984,1718422280242,-500.0,0.00023835,3]
[329538985,1718422280257,-500.0,0.00023835,3]
[329538986,1718422280276,-500.0,0.00023835,3]
[329538987,1718422280303,-551.87,0.00023835,3]
[329538988,1718422280327,-500.0,0.00023835,3]
[329538989,1718422280343,-500.0,0.00023835,3]
[329538990,1718422280373,-432.77706698,0.00023835,3]
[329538991,1718422280421,-500.0,0.00023835,3]
[329538992,1718422280439,-500.0,0.00023835,3]
[329538993,1718422280453,-500.0,0.00023835,3]
[329538994,1718422280495,-500.0,0.00023835,3]
[329538995,1718422280514,-500.0,0.00023835,3]
[329538996,1718422280528,-500.0,0.00023835,3]
[329538997,1718422280541,-611.68,0.00023835,3]
[329538998,1718422280555,-195.5567914,0.00023835,3]
[329538999,1718422280572,-500.0,0.00023835,3]
[329539000,1718422280601,-500.0,0.00023835,3]
[329539001,1718422280614,-1146.01,0.00023835,3]
[329539002,1718422280642,-500.0,0.00023835,3]
[329539003,1718422280668,-500.0,0.00023835,3]
[329539004,1718422280689,-500.0,0.00023835,3]
[329539005,1718422280711,-581.63061207,0.00023835,3]
[329539006,1718422280737,-2401.32,0.00023835,3]
[329539007,1718422280763,-500.0,0.00023835,3]
[329539008,1718422280785,-500.0,0.00023835,3]
[329539009,1718422280806,-500.0,0.00023835,3]
[329539010,1718422280817,-500.0,0.00023835,3]
[329539011,1718422280860,-500.0,0.00023835,3]
[329539012,1718422280873,-997.37,0.00023835,3]
[329539013,1718422280884,-533.87956983,0.00023835,3]
[329539014,1718422280895,-1854.19,0.00023835,3]
[329539015,1718422280907,-500.0,0.00023835,3]
[329539016,1718422280918,-500.0,0.00023835,3]
[329539017,1718422280933,-500.0,0.00023835,3]
[329539018,1718422280945,-500.0,0.00023835,3]
[329539019,1718422280957,-1801.0,0.00023835,3]
[329539020,1718422280970,-500.0,0.00023835,3]
[329539021,1718422280982,-500.0,0.00023835,3]
[329539022,1718422280993,-500.0,0.00023835,3]
[329539023,1718422281004,-1043.52,0.00023835,3]
[329539024,1718422281017,-500.0,0.00023835,3]
[329539025,1718422281035,-1221.78,0.00023835,3]
[329539026,1718422281048,-652.52,0.00023835,3]
[329539027,1718422281062,-691.66,0.00023835,3]
[329539028,1718422281075,-608.39,0.00023835,3]
[329539029,1718422281093,-811.04,0.00023835,3]
[329539030,1718422281106,-500.0,0.00023835,3]
[329539031,1718422281128,-592.9,0.00023835,3]
[329539032,1718422281146,-343.62,0.00023835,3]
[329539033,1718422281160,-500.0,0.00023835,3]
[329539034,1718422281179,-500.0,0.00023835,3]
[329539035,1718422281208,-182.23339418,0.00023835,3]
[329539036,1718422281224,-500.0,0.00023835,3]
[329539037,1718422281251,-500.0,0.00023835,3]
[329539038,1718422281265,-500.0,0.00023835,3]
[329539039,1718422281279,-1689.02,0.00023835,3]
[329539040,1718422281292,-500.0,0.00023835,3]
[329539041,1718422281312,-544.26,0.00023835,3]
[329539042,1718422281329,-261.69,0.00023835,3]
[329539043,1718422281364,-500.0,0.00023835,3]
[329539044,1718422281383,-500.0,0.00023835,3]
[329539045,1718422281396,-1062.12,0.00023835,3]
[329539046,1718422281419,-500.0,0.00023835,3]
[329539047,1718422281438,-1798.46,0.00023835,3]
[329539048,1718422281454,-6430.71,0.00023835,3]
[329539049,1718422281469,-500.0,0.00023835,3]
[329539050,1718422281482,-500.0,0.00023835,3]
[329539051,1718422281506,-500.0,0.00023835,3]
[329539052,1718422281518,-500.0,0.00023835,3]
[329539053,1718422281545,-500.0,0.00023835,3]
[329539054,1718422281561,-500.0,0.00023835,3]
[329539055,1718422281573,-500.0,0.00023835,3]
[329539056,1718422281587,-500.0,0.00023835,3]
[329539057,1718422281600,-769.63,0.00023835,3]
[329539058,1718422281618,-500.0,0.00023835,3]
[329539059,1718422281629,-706.02,0.00023835,3]
[329539060,1718422281653,-1384.1,0.00023835,3]
[329539061,1718422281668,-500.0,0.00023835,3]
[329539062,1718422281687,-500.0,0.00023835,3]
[329539063,1718422281704,-500.0,0.00023835,3]
[329539064,1718422281716,-500.0,0.00023835,3]
[329539065,1718422281731,-550.5,0.00023835,3]
[329539066,1718422281743,-500.0,0.00023835,3]
[329539067,1718422281765,-500.0,0.00023835,3]
[329539068,1718422281780,-500.0,0.00023835,3]
[329539069,1718422281793,-500.0,0.00023835,3]
[329539070,1718422281813,-573.92,0.00023835,3]
[329539071,1718422281828,-500.0,0.00023835,3]
[329539072,1718422281847,-660.95,0.00023835,3]
[329539073,1718422281860,-500.0,0.00023835,3]
[329539074,1718422281874,-500.0,0.00023835,3]
[329539075,1718422281885,-500.0,0.00023835,3]
[329539076,1718422281897,-500.0,0.00023835,3]
[329539077,1718422281910,-8644.0853355,0.00023913,2]
[329539078,1718422281923,-417.85,0.00023945,2]
[329539079,1718422281934,-851.72,0.00023945,2]
[329539080,1718422281946,-851.72,0.00023945,2]
[329539081,1718422281957,-417.85,0.00023945,2]
[329539082,1718422281975,-316.1,0.00023945,2]
[329539083,1718422281986,-266.88906681,0.00024063,2]
[329539084,1718422281998,-150.01731265,0.00024074,2]
[329539085,1718422282010,-613.3174936,0.00024097,2]
[329539086,1718422282022,-2059.15849944,0.000241,2]
[329539087,1718422282176,-528.37,0.00024109,3]
[329539088,1718422282190,-500.0,0.00024109,3]
[329539089,1718422282202,-500.0,0.00024109,3]
[329539090,1718422282213,-500.0,0.00024109,3]
[329539091,1718422282228,-500.0,0.00024109,3]
[329539092,1718422282241,-500.0,0.00024109,3]
[329539093,1718422282252,-500.0,0.00024109,3]
[329539094,1718422282264,-500.0,0.00024109,3]
[329539095,1718422282276,-500.0,0.00024109,3]
[329539096,1718422282288,-500.0,0.00024109,3]
[329539097,1718422282302,-500.0,0.00024109,3]
[329539098,1718422282315,-500.0,0.00024109,3]
[329539099,1718422282327,-500.0,0.00024109,3]
[329539100,1718422282339,-500.0,0.00024109,3]
[329539101,1718422282351,-500.0,0.00024109,3]
[329539102,1718422282362,-500.0,0.00024109,3]
[329539103,1718422282376,-500.0,0.00024109,3]
[329539104,1718422282387,-500.0,0.00024109,3]
[329539105,1718422282399,-500.0,0.00024109,3]
[329539106,1718422282410,-500.0,0.00024109,3]
[329539107,1718422282424,-500.0,0.00024109,3]
[329539108,1718422282436,-500.0,0.00024109,3]
[329539109,1718422282447,-500.0,0.00024109,3]
[329539110,1718422282482,-500.0,0.00024109,3]
[329539111,1718422282503,-503.29523734,0.00024109,3]
[329539112,1718422282519,-500.0,0.00024109,3]
[329539113,1718422282536,-500.0,0.00024109,3]
[329539114,1718422282559,-500.0,0.00024109,3]
[329539115,1718422282571,-500.0,0.00024109,3]
[329539116,1718422282589,-991.82,0.00024109,3]
[329539117,1718422282603,-500.0,0.00024109,3]
[329539118,1718422282624,-500.0,0.00024109,3]
[329539119,1718422282636,-510.9,0.00024109,3]
[329539120,1718422282647,-500.0,0.00024109,3]
[329539121,1718422282660,-500.0,0.00024109,3]
[329539122,1718422282677,-270.395045,0.00024109,7]
[329539123,1718422282692,-500.0,0.00024109,3]
[329539124,1718422282707,-500.0,0.00024109,3]
[329539125,1718422282720,-500.0,0.00024109,3]
[329539126,1718422282738,-500.0,0.00024109,3]
[329539127,1718422282760,-500.0,0.00024109,3]
[329539128,1718422282772,-500.0,0.00024109,3]
[329539129,1718422282793,-533.34756832,0.00024109,3]
[329539130,1718422282812,-500.0,0.00024109,3]
[329539131,1718422282827,-500.0,0.00024109,3]
[329539132,1718422282841,-500.0,0.00024109,3]
[329539133,1718422282871,-500.0,0.00024109,3]
[329539134,1718422282882,-500.0,0.00024109,3]
[329539135,1718422282902,-500.0,0.00024109,3]
[329539136,1718422282914,-500.0,0.00024109,3]
[329539137,1718422282924,-500.0,0.00024109,3]
[329539138,1718422282935,-500.0,0.00024109,3]
[329539139,1718422282947,-506.27402706,0.00024109,3]
[329539140,1718422282971,-500.0,0.00024109,3]
[329539141,1718422282988,-538.79499864,0.00024109,3]
[329539142,1718422283001,-499.33422601,0.00024109,3]
[329539143,1718422283032,-500.0,0.00024109,3]
[329539144,1718422283051,-610.67,0.00024109,3]
[329539145,1718422283065,-500.0,0.00024109,3]
[329539146,1718422283078,-500.0,0.00024109,3]
[329539147,1718422283107,-514.37977776,0.00024109,3]
[329539148,1718422283118,-500.0,0.00024109,3]
[329539149,1718422283135,-666.98,0.00024109,3]
[329539150,1718422283151,-500.0,0.00024109,3]
[329539151,1718422283164,-512.31056781,0.00024109,3]
[329539152,1718422283200,-500.0,0.00024109,3]
[329539153,1718422283250,-500.0,0.00024109,3]
[329539154,1718422283278,-551.87,0.00024109,3]
[329539155,1718422283296,-296.264071,0.00024109,7]
[329539156,1718422283319,-500.0,0.00024109,3]
[329539157,1718422283335,-500.0,0.00024109,3]
[329539158,1718422283364,-535.08900213,0.00024109,3]
[329539159,1718422283381,-528.79092094,0.00024109,3]
[329539160,1718422283395,-500.0,0.00024109,3]
[329539161,1718422283406,-500.0,0.00024109,3]
[329539162,1718422283419,-500.0,0.00024109,3]
[329539163,1718422283440,-500.0,0.00024109,3]
[329539164,1718422283453,-611.68,0.00024109,3]
[329539165,1718422283488,-500.0,0.00024109,3]
[329539166,1718422283502,-500.0,0.00024109,3]
[329539167,1718422283521,-1146.01,0.00024109,3]
[329539168,1718422283535,-598.05743441,0.00024109,3]
[329539169,1718422283551,-500.0,0.00024109,3]
[329539170,1718422283568,-500.0,0.00024109,3]
[329539171,1718422283581,-2401.32,0.00024109,3]
[329539172,1718422283595,-500.0,0.00024109,3]
[329539173,1718422283609,-500.0,0.00024109,3]
[329539174,1718422283622,-299.75,0.00024109,3]
[329539175,1718422283633,-500.0,0.00024109,3]
[329539176,1718422283649,-500.0,0.00024109,3]
[329539177,1718422283661,-997.37,0.00024109,3]
[329539178,1718422283682,-1854.19,0.00024109,3]
[329539179,1718422283704,-500.0,0.00024109,3]
[329539180,1718422283719,-500.0,0.00024109,3]
[329539181,1718422283734,-500.0,0.00024109,3]
[329539182,1718422283745,-500.0,0.00024109,3]
[329539183,1718422283772,-1801.0,0.00024109,3]
[329539184,1718422283783,-500.0,0.00024109,3]
[329539185,1718422283795,-500.0,0.00024109,3]
[329539186,1718422283814,-512.50555443,0.00024109,3]
[329539187,1718422283836,-1043.52,0.00024109,3]
[329539188,1718422283853,-500.0,0.00024109,3]
[329539189,1718422283886,-1221.78,0.00024109,3]
[329539190,1718422283920,-652.52,0.00024109,3]
[329539191,1718422283931,-691.66,0.00024109,3]
[329539192,1718422283943,-608.39,0.00024109,3]
[329539193,1718422283955,-811.04,0.00024109,3]
[329539194,1718422283973,-500.0,0.00024109,3]
[329539195,1718422283986,-592.9,0.00024109,3]
[329539196,1718422284007,-500.0,0.00024109,3]
[329539197,1718422284023,-500.0,0.00024109,3]
[329539198,1718422284045,-500.0,0.00024109,3]
[329539199,1718422284060,-500.0,0.00024109,3]
[329539200,1718422284075,-500.0,0.00024109,3]
[329539201,1718422284089,-1689.02,0.00024109,3]
[329539202,1718422284102,-500.0,0.00024109,3]
[329539203,1718422284114,-544.26,0.00024109,3]
[329539204,1718422284127,-500.0,0.00024109,3]
[329539205,1718422284141,-500.0,0.00024109,3]
[329539206,1718422284156,-1062.12,0.00024109,3]
[329539207,1718422284193,-500.0,0.00024109,3]
[329539208,1718422284231,-1798.46,0.00024109,3]
[329539209,1718422284263,-6430.71,0.00024109,3]
[329539210,1718422284275,-500.0,0.00024109,3]
[329539211,1718422284290,-500.0,0.00024109,3]
[329539212,1718422284302,-500.0,0.00024109,3]
[329539213,1718422284317,-500.0,0.00024109,3]
[329539214,1718422284328,-500.0,0.00024109,3]
[329539215,1718422284340,-500.0,0.00024109,3]
[329539216,1718422284351,-500.0,0.00024109,3]
[329539217,1718422284363,-500.0,0.00024109,3]
[329539218,1718422284374,-769.63,0.00024109,3]
[329539219,1718422284387,-500.0,0.00024109,3]
[329539220,1718422284399,-706.02,0.00024109,3]
[329539221,1718422284410,-1384.1,0.00024109,3]
[329539222,1718422284421,-500.0,0.00024109,3]
[329539223,1718422284433,-500.0,0.00024109,3]
[329539224,1718422284461,-500.0,0.00024109,3]
[329539225,1718422284472,-500.0,0.00024109,3]
[329539226,1718422284484,-550.5,0.00024109,3]
[329539227,1718422284496,-500.0,0.00024109,3]
[329539228,1718422284510,-500.0,0.00024109,3]
[329539229,1718422284521,-500.0,0.00024109,3]
[329539230,1718422284536,-500.0,0.00024109,3]
[329539231,1718422284549,-573.92,0.00024109,3]
[329539232,1718422284563,-500.0,0.00024109,3]
[329539233,1718422284574,-660.95,0.00024109,3]
[329539234,1718422284593,-500.0,0.00024109,3]
[329539235,1718422284605,-540.82679963,0.00024109,3]
[329539236,1718422284619,-500.0,0.00024109,3]
[329539237,1718422284633,-500.0,0.00024109,3]
[329539238,1718422284646,-179.481945,0.0002411,2]
[329539239,1718422284658,-6824.48538974,0.0002412,2]
[329539240,1718422284673,-153.68492921,0.00024126,2]
[329539241,1718422284684,-153.68492921,0.00024132,2]
[329539242,1718422284695,-158.93292233,0.00024153,2]
[329539243,1718422284707,-258.85803751,0.00024154,2]
[329539244,1718422284718,-504.85141881,0.00024158,2]
[329539245,1718422284729,-613.3174936,0.0002417,2]
[329539246,1718422284741,-166.08083695,0.00024171,2]
[329539247,1718422284752,-29999.99,0.00024174,2]
[329539248,1718422284762,-14544.76,0.00024174,2]
[329539249,1718422284772,-9768.44,0.00024174,2]
[329539250,1718422284783,-4417.99,0.00024174,2]
[329539251,1718422284793,-165.82648826,0.00024214,2]
[329539252,1718422284813,-152.41239157,0.00024219,2]
[329539253,1718422284824,-150.01731265,0.0002422,2]
[329539254,1718422284836,-266.88906681,0.00024226,2]
[329539255,1718422284850,-180.0,0.0002423,2]
[329539256,1718422284863,-150.0,0.000243,2]
[329539257,1718422284880,-504.85141881,0.00024302,2]
[329539258,1718422284897,-1207.63360868,0.0002432,5]
[329539259,1718422284916,-1000.0,0.00024328,2]
[329539260,1718422284945,-158.6936042,0.00024338,2]
[329539261,1718422284976,-154.66346707,0.00024375,2]
[329539262,1718422285006,-906.03,0.00024382,3]
[329539263,1718422285037,-528.37,0.00024383,3]
[329539264,1718422285050,-500.0,0.00024383,3]
[329539265,1718422285072,-500.0,0.00024383,3]
[329539266,1718422285087,-500.0,0.00024383,3]
[329539267,1718422285100,-500.0,0.00024383,3]
[329539268,1718422285140,-500.0,0.00024383,3]
[329539269,1718422285153,-500.0,0.00024383,3]
[329539270,1718422285191,-500.0,0.00024383,3]
[329539271,1718422285204,-500.0,0.00024383,3]
[329539272,1718422285240,-417.38208384,0.00024383,3]
[329539273,1718422285263,-549.02,0.00024383,3]
[329539274,1718422285273,-500.0,0.00024383,3]
[329539275,1718422285287,-500.0,0.00024383,3]
[329539276,1718422285321,-500.0,0.00024383,3]
[329539277,1718422285333,-500.0,0.00024383,3]
[329539278,1718422285347,-500.0,0.00024383,3]
[329539279,1718422285390,-530.68929585,0.00024383,3]
[329539280,1718422285402,-500.0,0.00024383,3]
[329539281,1718422285420,-537.8742256,0.00024383,3]
[329539282,1718422285441,-500.0,0.00024383,3]
[329539283,1718422285452,-500.0,0.00024383,3]
[329539284,1718422285485,-500.0,0.00024383,3]
[329539285,1718422285499,-500.0,0.00024383,3]
[329539286,1718422285522,-500.0,0.00024383,3]
[329539287,1718422285554,-647.7287665,0.00024383,3]
[329539288,1718422285575,-500.0,0.00024383,3]
[329539289,1718422285590,-500.0,0.00024383,3]
[329539290,1718422285603,-500.0,0.00024383,3]
[329539291,1718422285622,-991.82,0.00024383,3]
[329539292,1718422285634,-500.0,0.00024383,3]
[329539293,1718422285649,-426.72,0.00024383,3]
[329539294,1718422285661,-510.9,0.00024383,3]
[329539295,1718422285681,-500.0,0.00024383,3]
[329539296,1718422285695,-378.34284832,0.00024383,3]
[329539297,1718422285711,-500.0,0.00024383,3]
[329539298,1718422285729,-500.0,0.00024383,3]
[329539299,1718422285742,-537.13315095,0.00024383,3]
[329539300,1718422285760,-500.0,0.00024383,3]
[329539301,1718422285804,-500.0,0.00024383,3]
[329539302,1718422285824,-500.0,0.00024383,3]
[329539303,1718422285851,-500.0,0.00024383,3]
[329539304,1718422285869,-500.0,0.00024383,3]
[329539305,1718422285885,-500.0,0.00024383,3]
[329539306,1718422285910,-500.0,0.00024383,3]
[329539307,1718422285952,-500.0,0.00024383,3]
[329539308,1718422285977,-500.0,0.00024383,3]
[329539309,1718422285990,-500.0,0.00024383,3]
[329539310,1718422286023,-500.0,0.00024383,3]
[329539311,1718422286035,-500.0,0.00024383,3]
[329539312,1718422286048,-610.67,0.00024383,3]
[329539313,1718422286066,-500.0,0.00024383,3]
[329539314,1718422286083,-500.0,0.00024383,3]
[329539315,1718422286111,-500.0,0.00024383,3]
[329539316,1718422286141,-666.98,0.00024383,3]
[329539317,1718422286160,-500.0,0.00024383,3]
[329539318,1718422286174,-551.87,0.00024383,3]
[329539319,1718422286195,-500.0,0.00024383,3]
[329539320,1718422286222,-500.0,0.00024383,3]
[329539321,1718422286242,-418.19632236,0.00024383,3]
[329539322,1718422286260,-611.68,0.00024383,3]
[329539323,1718422286288,-500.0,0.00024383,3]
[329539324,1718422286299,-500.0,0.00024383,3]
[329539325,1718422286324,-1146.01,0.00024383,3]
[329539326,1718422286337,-500.0,0.00024383,3]
[329539327,1718422286361,-2401.32,0.00024383,3]
[329539328,1718422286396,-500.0,0.00024383,3]
[329539329,1718422286433,-500.0,0.00024383,3]
[329539330,1718422286447,-500.0,0.00024383,3]
[329539331,1718422286460,-500.0,0.00024383,3]
[329539332,1718422286481,-997.37,0.00024383,3]
[329539333,1718422286501,-1854.19,0.00024383,3]
[329539334,1718422286523,-500.0,0.00024383,3]
[329539335,1718422286535,-500.0,0.00024383,3]
[329539336,1718422286554,-500.0,0.00024383,3]
[329539337,1718422286573,-500.0,0.00024383,3]
[329539338,1718422286608,-1801.0,0.00024383,3]
[329539339,1718422286646,-500.0,0.00024383,3]
[329539340,1718422286665,-500.0,0.00024383,3]
[329539341,1718422286687,-1043.52,0.00024383,3]
[329539342,1718422286714,-500.0,0.00024383,3]
[329539343,1718422286730,-1221.78,0.00024383,3]
[329539344,1718422286760,-652.52,0.00024383,3]
[329539345,1718422286777,-691.66,0.00024383,3]
[329539346,1718422286805,-608.39,0.00024383,3]
[329539347,1718422286820,-811.04,0.00024383,3]
[329539348,1718422286840,-500.0,0.00024383,3]
[329539349,1718422286860,-592.9,0.00024383,3]
[329539350,1718422286879,-500.0,0.00024383,3]
[329539351,1718422286899,-500.0,0.00024383,3]
[329539352,1718422286945,-500.0,0.00024383,3]
[329539353,1718422286963,-500.0,0.00024383,3]
[329539354,1718422286982,-500.0,0.00024383,3]
[329539355,1718422286995,-1689.02,0.00024383,3]